Cogmind - Beta 17 @@@ ROGUE MODE // 2026.06.23 @ 19:52:27 Player: H0-D32 Result: Destroyed by S-10 Pest with Light Assault Rifle Performance ------------- Evolutions (1) 500 Regions Visited (3) 600 Robots Destroyed (26) 130 Value Destroyed (575) 575 Prototype IDs (0) 0 Alien Tech Used (0) 0 Bonus (0) 0 TOTAL SCORE: 1805 Bonus ------- None Cogmind --------- Core Integrity 0/400 Matter 400/400 Energy 100/100 System Corruption 0% Temperature Cool (0) Movement Core (300) Ox5 Location -9/Materials Parts ------- > --- POWER (2) -------- (None) > --- PROPULSION (2) --- (None) > --- UTILITY (3) ------ Medium Storage Unit Medium Matter Pod Targeting Computer > --- WEAPON (2) ------- Particle Cannon Katana > --- INVENTORY (10) --- Experimental Sensor Array Authchip [Device] Light Assault Rifle Rocket Launcher Peak State ------------ > --- POWER ------------ Light Ion Engine > --- PROPULSION ------- Compact Wheel Compact Wheel > --- UTILITY ---------- Medium Storage Unit Sensor Array Targeting Computer > --- WEAPON ----------- Particle Cannon Makeshift Shrapnel Gun > --- INVENTORY -------- Ion Engine Medium Matter Pod Experimental Sensor Array Authchip [Device] Light Assault Rifle Rocket Launcher Katana [Rating: 14] Favorites ----------- Power Light Ion Engine Engine Light Ion Engine Propulsion Compact Wheel Treads Light Treads Wheel Compact Wheel Utility Sensor Array Device Sensor Array Storage Medium Storage Unit Processor Targeting Computer Weapon Makeshift Shrapnel Gun Energy Cannon Particle Cannon Ballistic Gun Makeshift Shrapnel Gun Impact Weapon Hammer Slashing Weapon Mining Claw Build | -11 -10 -10 -9 ------- Run | Yrd Mat Min Mat Slots Evolved 2 | . . . 2 Power 1 | . . . 1 Propulsion . | . . . . Utility 1 | . . . 1 Weapon . | . . . . Parts Attached 17 | 3 8 3 3 Power 2 | . 1 1 . Engine 2 | . 1 1 . Core . | . . . . Reactor . | . . . . Propulsion 4 | 2 2 . . Treads 2 | 2 . . . Leg . | . . . . Wheel 2 | . 2 . . Hover . | . . . . Flight . | . . . . Utility 4 | . 2 1 1 Device 1 | . 1 . . Storage 2 | . 1 1 . Processor 1 | . . . 1 Hackware . | . . . . Protection . | . . . . Artifact . | . . . . Weapon 7 | 1 3 1 2 Energy Gun . | . . . . Energy Cannon 1 | . . . 1 Ballistic Gun 3 | 1 1 1 . Ballistic Cannon . | . . . . Launcher . | . . . . Special Weapon . | . . . . Impact Weapon 1 | . 1 . . Slashing Weapon 2 | . 1 . 1 Piercing Weapon . | . . . . Special Melee Weapon . | . . . . Unidentified Prototypes . | . . . . Parts Lost 7 | . . 1 6 Power 2 | . . . 2 Propulsion 2 | . . . 2 Utility 1 | . . . 1 Weapon 2 | . . 1 1 Highest Loss Streak 5 | . . 1 5 To Critical Strikes . | . . . . Average Backups 4 | 1 3 4 6 Power . | . . 1 . Propulsion . | . 1 . . Utility 1 | . . 2 2 Weapon 1 | . 1 1 2 Tool/Special . | . . . . Unused Backups 4 | . . 1 3 Power 1 | . . 1 . Propulsion . | . . . . Utility 2 | . . . 2 Weapon 1 | . . . 1 Tool/Special . | . . . . Average Slot Usage (%) 81 | . 67 92 78 Engine 8 | . . 14 9 Treads 7 | . 21 . . Wheel 18 | . 6 28 19 Device 8 | . 3 14 6 Storage 12 | . 12 14 11 Processor 2 | . . . 10 Energy Cannon 1 | . . . 7 Ballistic Gun 10 | . 7 14 9 Impact Weapon 2 | . 6 . . Slashing Weapon 7 | . 9 6 3 Peak Build Rating 14 | 3 7 11 14 Average Rating 8 | 1 4 9 12 On Entrance 5 | . 3 7 10 Avg Prop Armor Cover (%) . | . . . . Naked Turns . | . . . . Heaviest Build 20 | 1 11 20 20 Greatest Support 40 | 40 40 32 32 Greatest Overweight (x) 5 | . . . 5 Average Overweight (x) . | . . . . Largest Inventory Capacity 10 | 5 5 10 10 Average Capacity 7 | 5 5 8 10 Most Carried 8 | 3 5 7 8 Average Carried 4 | 1 3 4 6 Final Capacity 10 | 5 5 10 10 Final Carried 6 | 3 1 6 4 Class Distribution -------------------- 100% | Mutant Dominant Class ---------------- Mutant | -10/Materials Mutant | -10/Mines Mutant | -9/Materials Resources | -11 -10 -10 -9 ----------- Run | Yrd Mat Min Mat Matter Collected 645 | 185 112 149 199 Remotely . | . . . . Salvage Created 680 | . 112 80 488 Parts 54 | . 15 14 25 Haulers Intercepted . | . . . . Recyclers Shooed . | . . . . Parts Field Recycled . | . . . . Retrieved Matter . | . . . . Parts Self-Destructed . | . . . . Prevented . | . . . . Parts Restored . | . . . . Kills | -11 -10 -10 -9 ------- Run | Yrd Mat Min Mat Combat Hostiles Destroyed 23 | . 6 6 11 Melee 6 | . 3 . 3 Guns 15 | . 3 6 6 Cannons 2 | . . . 2 Classes Destroyed 6 | . 2 . 4 Worker 1 | . . . 1 Watcher 2 | . 1 . 1 Swarmer 12 | . 6 6 . Grunt 8 | . . . 8 Duelist 1 | . . . 1 Sentry 2 | . . . 2 Best Kill Streak 4 | . 4 3 4 Combat Bots Only 4 | . 3 3 4 Max Kills in Single Turn 1 | . 1 1 1 Gunslinging . | . . . . Exploded . | . . . . Melee 1 | . 1 . 1 Uniques/NPCs Destroyed . | . . . . Combat | -11 -10 -10 -9 -------- Run | Yrd Mat Min Mat Hostile Shots Fired 142 | . 55 13 74 Missed 30 | . 14 3 13 Hits 112 | . 41 10 61 Projectile 112 | . 41 10 61 Critical Strikes 1 | . 1 . . Damage Taken 1170 | . 320 82 768 Core 544 | . 108 31 405 Absorbed by Shields . | . . . . Core Remaining (%) 72 | 100 . 44 . Volleys Fired 52 | . 18 8 26 Largest 2 | . 1 1 2 Hottest 92 | . 20 24 92 Shots Fired 62 | . 18 8 36 Gun 45 | . 18 8 19 Cannon 17 | . . . 17 Launcher . | . . . . Special . | . . . . Kinetic 45 | . 18 8 19 Thermal 17 | . . . 17 Explosive . | . . . . Electromagnetic . | . . . . Robot Hit Streak 7 | . 5 4 7 Robot Miss Streak 5 | . 3 5 4 Penetration Max . | . . . . Secondary Targets . | . . . . Shots Hit Robots 64 | . 17 7 40 Core Hits 37 | . 9 6 22 Critical Kills 1 | . 1 . . Critical Parts Destroyed . | . . . . Critical Strikes 1 | . 1 . . Destroy 1 | . 1 . . Melee Attacks 30 | . 15 1 14 Impact . | . . . . Slashing 30 | . 15 1 14 Piercing . | . . . . Sneak Attacks 4 | . . . 4 Combat Hostiles . | . . . . Follow-up Attacks . | . . . . Damage Inflicted 1350 | . 231 87 1032 Guns 530 | . 91 86 353 Cannons 263 | . . . 263 Explosions . | . . . . Melee 556 | . 140 . 416 Ramming 1 | . . 1 . Kinetic 530 | . 91 86 353 Thermal 263 | . . . 263 Explosive . | . . . . Electromagnetic . | . . . . Impact . | . . . . Slashing 556 | . 140 . 416 Piercing . | . . . . Highest Corruption . | . . . . Average Corruption . | . . . . Corruption Purged . | . . . . Corruption Blocked . | . . . . Overload Shots . | . . . . Overflow Damage 70 | . 3 . 67 Projectiles . | . . . . Explosions . | . . . . Melee 70 | . 3 . 67 Knockbacks . | . . . . Impact . | . . . . Kinetic . | . . . . Secondary . | . . . . Self-Inflicted Damage . | . . . . Shots . | . . . . Rammed 1 | . . 1 . Targets Rammed 1 | . . 1 . Kicked . | . . . . Crushed . | . . . . Highest Temperature 100 | . . . 100 Average Temperature 34 | . . . 34 Received Heat Transfer 309 | . 18 . 291 Siege Activations . | . . . . Martial Activations . | . . . . Shielding Activations . | . . . . Robots Disrupted . | . . . . Combat Hostiles . | . . . . Robots Corrupted . | . . . . Combat Hostiles . | . . . . Parts Fried . | . . . . Impact Corruptions . | . . . . Robots Melted . | . . . . Combat Hostiles . | . . . . Parts Melted . | . . . . Heat Transferred 481 | . . . 481 Parts Sabotaged . | . . . . Parts Stolen . | . . . . Parts Stripped . | . . . . Power Chain Reactions . | . . . . Alert | -11 -10 -10 -9 ------- Run | Yrd Mat Min Mat Maximum Alert Level . | . . . . Low Security (%) 100 | 100 100 100 100 Level 1 . | . . . . Level 2 . | . . . . Level 3 . | . . . . Level 4 . | . . . . Level 5 . | . . . . High Security . | . . . . Max Security . | . . . . Peak Influence 139 | . 75 92 139 Initial 5 | . . 5 . Average 23 | . 16 18 45 Influence Increases 631 | . 177 140 314 Destroy 0b10 Robot/C 460 | . 120 120 220 Destroy 0b10 Robot/NC 15 | . 5 . 10 Destroy Leader 94 | . 22 20 52 Destroy Structure 2 | . . . 2 Partial Spotted 15 | . . . 15 Lose Combat Pursuer 45 | . 30 . 15 Influence Decreases 495 | . 162 155 178 Entered New Map 10 | . . 10 . Time Decay 410 | . 147 145 118 Lost Part 60 | . . . 60 Purge Threat 15 | . 15 . . Squads Dispatched 2 | . 1 . 1 Investigation 1 | . 1 . . Extermination . | . . . . Reinforcement 1 | . . . 1 Assault . | . . . . Garrison . | . . . . Intercept . | . . . . Searches Triggered . | . . . . Construction Impeded . | . . . . Haulers Reinforced . | . . . . Active Scanning Responses . | . . . . Cargo Convoy Interrupts . | . . . . Stealth | -11 -10 -10 -9 --------- Run | Yrd Mat Min Mat Distress Signals 3 | . 1 . 2 Communications Jammed . | . . . . Distress Signals . | . . . . Times Spotted 48 | . 19 6 23 Peak Tracking Total 8 | . 5 3 8 Tactical Retreats 3 | . 2 . 1 Traps | -11 -10 -10 -9 ------- Run | Yrd Mat Min Mat Traps Triggered 2 | . 2 . . Indirectly . | . . . . Trap Hack Attempts . | . . . . Triggered . | . . . . Disarmed . | . . . . Reprogrammed . | . . . . Reused . | . . . . Traps Extracted . | . . . . Installed . | . . . . Triggered . | . . . . Machines | -11 -10 -10 -9 ---------- Run | Yrd Mat Min Mat Machines Disabled . | . . . . Max in Single Turn . | . . . . Machines Repaired . | . . . . Machines Dismantled . | . . . . Machines Sabotaged . | . . . . Overloaded Fab Kills . | . . . . Hacking | -11 -10 -10 -9 --------- Run | Yrd Mat Min Mat Machines Accessed 3 | . 3 . . Terminals 2 | . 2 . . Fabricators . | . . . . Repair Stations . | . . . . Recycling Units 1 | . 1 . . Scanalyzers . | . . . . Garrison Access . | . . . . Total Hacks 9 | . 9 . . Successful 5 | . 5 . . Failed 4 | . 4 . . Catastrophic . | . . . . Database Lockouts . | . . . . Manual 2 | . 2 . . Terminals 6 | . 6 . . Fabricators . | . . . . Repair Stations . | . . . . Recycling Units 3 | . 3 . . Scanalyzers . | . . . . Garrison Access . | . . . . Terminal Hacks 3 | . 3 . . Record 2 | . 2 . . Unreport Threat 1 | . 1 . . Fabricator Hacks . | . . . . Repair Station Hacks . | . . . . Recycling Unit Hacks 2 | . 2 . . Report Inventory 1 | . 1 . . Retrieve Components 1 | . 1 . . Scanalyzer . | . . . . Garrison Access Hacks . | . . . . Unauthorized Hacks . | . . . . Terminals . | . . . . Fabricators . | . . . . Repair Stations . | . . . . Recycling Units . | . . . . Scanalyzers . | . . . . Garrison Access . | . . . . Data Cores Recovered . | . . . . Used . | . . . . Hacking Detections 2 | . 2 . . Full Trace Events 1 | . 1 . . Feedback Events . | . . . . Feedback Blocked . | . . . . Robot Schematics Acquired . | . . . . Robots Built . | . . . . Authchips . | . . . . Time . | . . . . Total Robot Build Rating . | . . . . Part Schematics Acquired . | . . . . Parts Built . | . . . . Authchips . | . . . . Time . | . . . . Total Part Build Rating . | . . . . Part Studies Acquired . | . . . . Parts Repaired . | . . . . Time . | . . . . Parts Recycled . | . . . . Recycled Matter . | . . . . Retrieved Matter . | . . . . Retrieved Components 2 | . 2 . . Parts Scanalyzed . | . . . . Part Schematics Acquired . | . . . . Parts Damaged . | . . . . Bothacking | -11 -10 -10 -9 ------------ Run | Yrd Mat Min Mat Used RIF Installer . | . . . . Robots Hacked . | . . . . Non-combat . | . . . . Combat . | . . . . Robot Hacks Applied . | . . . . Relay Couplers Released . | . . . . Fabnet Peak Effective % . | . . . . Robots Rewired . | . . . . Allies Hacked . | . . . . Hacks Repelled . | . . . . Allies | -11 -10 -10 -9 -------- Run | Yrd Mat Min Mat Total Allies . | . . . . Largest Group . | . . . . Highest-Rated Group . | . . . . Highest-Rated Ally . | . . . . Total Orders . | . . . . Ally Attacks . | . . . . Total Damage . | . . . . Kills . | . . . . Allies Corrupted . | . . . . Allies Melted . | . . . . Intel | -11 -10 -10 -9 ------- Run | Yrd Mat Min Mat Active Infowar (turns) 1371 | . 155 922 294 Sensors 1371 | . 155 922 294 Robot Analysis Total . | . . . . Derelict Logs Recovered 1 | . . 1 . Drone Launches . | . . . . Drone Recoveries . | . . . . Exploration | -11 -10 -10 -9 ------------- Run | Yrd Mat Min Mat Turns Passed 2198 | 71 697 922 508 Spaces Moved 1345 | 28 390 804 123 Core 18 | 5 . . 13 Treads 283 | 23 260 . . Legs . | . . . . Wheels 1044 | . 130 804 110 Hover . | . . . . Flight . | . . . . Fastest Speed 50 | 50 100 100 100 Average Speed 114 | 140 140 100 117 Slowest Speed 300 | 160 160 100 300 Overloaded Moves . | . . . . Propulsion Burnouts . | . . . . Robots Hopped . | . . . . Potential Cave-ins . | . . . . Cave-ins Triggered . | . . . . Exploration Rate (%) 38 | 3 50 95 7 Regions Visited 3 Branch Regions 1 Pre-discovered Areas 1 | . . 1 . Known Exits Taken . | . . . . Unknown Exits Taken 3 | 1 1 1 . Scrap Searched 1 | . . 1 . Spaces Dug 1 | . . . 1 Terrain Destroyed 1 | . . . 1 Melee 1 | . . . 1 Projectile . | . . . . AOE . | . . . . Terrain Rammed . | . . . . Walls Destroyed . | . . . . Machines Disabled . | . . . . Actions | -11 -10 -10 -9 --------- Run | Yrd Mat Min Mat Total 1902 | 60 499 911 432 Wait 425 | 24 54 88 259 Move 1342 | 27 389 803 123 Hop . | . . . . Pick Up 23 | 6 8 6 3 Fast Attach . | . . . . Attach 19 | 3 10 . 6 Detach 2 | . 1 . 1 Swap 3 | . . 3 . Drop 5 | . 4 1 . Fire 52 | . 18 8 26 Melee 30 | . 15 1 14 Ram 1 | . . 1 . Kick . | . . . . Crush . | . . . . Escape Stasis . | . . . . Rewire . | . . . . Trap . | . . . . Miscellaneous . | . . . . Route ------- -11/Scrapyard -10/Materials (discovered 2 exits: [*Mat] / [*Min]) -10/Mines (discovered 2 exits: [*Mat x2]) -9/Materials History --------- Turn | Location | Event 48 | -11/Scrapyard | Discovered new exit (range 16) 72 | -11/Scrapyard | Entered Materials 73 | -10/Materials | Met a group of wandering Federalists 278 | -10/Materials | Discovered new exit (range 14) 312 | -10/Materials | Build established: Mutant 479 | -10/Materials | Discovered new exit (range 3) 769 | -10/Materials | Entered Mines 824 | -10/Mines | Discovered new exit (range 10) 919 | -10/Mines | Received a Rocket Launcher from a helpful Derelict 937 | -10/Mines | Learned location of Storage (-7) 1010 | -10/Mines | A weapon hastily lodged in a ceiling crevice suddenly fell to the ground 1111 | -10/Mines | Found a damaged Exp. Sensor Array with a note attached 1113 | -10/Mines | Found Prototype Device 1220 | -10/Mines | Core integrity fell below 50% 1322 | -10/Mines | Discovered new exit (range 7) 1691 | -10/Mines | Entered Materials 1691 | -9/Materials | Evolved 2 slots: Power x1, Utility x1 2141 | -9/Materials | Core integrity fell below 50% 2163 | -9/Materials | Core integrity fell below 20% 2193 | -9/Materials | Lost 5 parts (2p2n1w) 2199 | -9/Materials | Destroyed by S-10 Pest with Light Assault Rifle Last Messages --------------- 02171_ K-01 Serf cleans the Terminal. 02171_ Y-45 Defender destroyed. 02171_ U-05 Engineer builds a Wall. 02172_ K-01 Serf collects debris. 02173_ Sneak attack on U-05 Engineer. 02173_ Destroyed Wheel. 02174_ K-01 Serf cleans the Terminal. 02176_ K-01 Serf collects debris. 02176_ R-06 Scavenger collects Beam Rifle. 02177_ R-06 Scavenger collects Lgt. Treads. 02179_ R-06 Scavenger collects Heat Sink. 02184_ K-01 Serf cleans the Terminal. 02186_ Acquired 15 matter. 02187_ K-01 Serf cleans the Terminal. 02192_ Acquired 10 matter. 02195_ Sneak attack on K-01 Serf. 02195_ K-01 Serf destroyed. 02196_ K-01 Serf collects debris. 02196_ R-06 Scavenger collects Med. Matter Pod. 02197_ R-06 Scavenger collects Wheel. Map ----- +----------------------------------------------------+ | | | | | | | | | | | | | | | | | | | | | ?????????????????????????????????????????????????? | | ?????????????????????????????????????????????????? | | ?????????????????????????????????????????????????? | | ??????????????????########???????????????????????? | | ??????????????????# ############????????????? | | ??????????????????# """ # # #????????????? | | ??????????????????# """ # # #????????????? | | ??????????????????# """ # %# #????????????? | | ??????????????????# + + ] #????????????? | | ??????????????????# # #= !] #????????????? | | ??????????????????######## # !] #????????????? | | ?????????????????????????# ########????????????? | | ?????# ################# ########????????????? | | ?? / " + o % # # #????????????? | | ?????# ########## ""*# # """ #????????????? | | ??????????????????# T" @s %+ """ #????????????? | | ??????????????????# %""r#k # """ #????????????? | | ??????????????????# %% # # #????????????? | | ??????????????????# % # s # #????????????? | | ??????????????????######## ###/####????????????? | | ???????????????????????### #?? ???????????????? | | ?????????????????????????# u#??!!!??????????????? | | ?????????????????????????# #???!!#?????????????? | | ?????????????????????????# #???! #?????????????? | | ?????????????????????????# +??? #?????????????? | | ?????????????????????????# #???? #?????????????? | | ?????????????????????????# #???? #?????????????? | | ?????????????????????????# #?????#?????????????? | | ?????????????????????????# #???????????????????? | | ?????????????????????????+ #???????????????????? | | ?????????????????????????# #???????????????????? | | ?????????????????????????# ????????????????????? | | ?????????????????????????# ????????????????????? | | ????????????????????????? ????????????????????? | | ?????????????????????????? ????????????????????? | | ?????????????????????????????????????????????????? | | ?????????????????????????????????????????????????? | | ?????????????????????????????????????????????????? | | ?????????????????????????????????????????????????? | | ?????????????????????????????????????????????????? | +----------------------------------------------------+ Best States ------------- Heat Dissipation 28 Energy Generation 10 Energy Capacity 250 Matter Stores 390 Matter Capacity 400 Sight Range 16 Robot Scan Range 14 Terrain Scan Density 10 Evasion (%) 50 Targeting Accuracy 5 Recoil Reduction 2 Authchip Count 1 Item Schematics ----------------- None Robot Schematics ------------------ None Fabricated ------------ Nothing Repaired ---------- Nothing Studied --------- None Alien Tech Used ----------------- None Achievements -------------- DATA ERROR: Steam Global Achievement% For Emergencies Only Ghost 'Em Organ Harvest There's More Where That Came From Challenges ------------ None Game ------ Seed DispersionMetafiberPower Manual? 0 Play Time 00:24:45 Cumulative 34.4 hours Start 2026.06.23 @ 19:24:59 End 2026.06.23 @ 19:52:27 Sessions 1 Manual Loads 0 Difficulty Rogue Special Mode None Game No. 45 Rogue 13 Adventurer 32 Explorer 0 Win Type - Total 0 Types 0/0/0/0/0/0/0/0/0/0 Lore% 15 Gallery% 21 Achievement% 13 Wizard Run 0 Options --------- Layout 1 ASCII 0 Keyboard 0 Movement Mouse Keybinds 0 Fullscreen 1 Font 24/Smallcaps Map View 50x35 Zoom Use 0% Tactical HUD 1 Map Filters NONE Filters NONE Steam 1 RUN: 31d444ef-6c0c-4052-854a-616b75fc08ea